bitfinex/quotes_SOLUSD_20250721
["timestamp","ask_amount","ask_price","bid_price","bid_amount"]
[1753111679782,7.7,197.08,197.06,15.59772946]
[1753111679963,7.7,197.08,197.03,5.07536923]
[1753111679964,7.7,197.08,197.05,15.59772946]
[1753111680167,8.39,197.08,197.06,26.0]
[1753111680474,0.69,197.07,197.04,15.59772946]
[1753111680676,7.7,197.08,197.01,38.78]
[1753111680993,7.7,197.07,197.06,15.59772946]
[1753111681294,7.7,197.09,197.06,15.59772946]
[1753111681586,7.7,197.07,197.06,15.59772946]
[1753111681791,7.7,197.07,197.06,20.67232602]
[1753111681974,7.7,197.09,197.06,20.67232602]
[1753111682180,7.7,197.07,197.06,20.67232602]
[1753111682481,7.7,197.09,197.06,20.67232602]
[1753111682675,0.72,197.13,197.06,20.67232602]
[1753111682676,7.7,197.1,197.08,15.59772946]
[1753111682892,7.7,197.1,197.09,15.59772946]
[1753111683189,7.7,197.1,197.09,41.59772946]
[1753111683382,7.7,197.11,197.09,41.59772946]
[1753111683589,7.7,197.11,197.1,15.59772946]
[1753111683766,7.7,197.1,197.09,31.07381275]
[1753111683974,7.7,197.1,197.09,46.67154221]
[1753111684369,7.7,197.12,197.09,46.67154221]
[1753111684569,0.06,197.13,197.11,15.59772946]
[1753111684783,0.06,197.13,197.1,0.25026053]
[1753111684784,0.06,197.13,197.12,15.59772946]
[1753111684972,7.76,197.13,197.12,15.59772946]
[1753111685194,0.06,197.13,197.12,15.59772946]
[1753111685366,1e-08,197.13,197.12,41.59772946]
[1753111685571,1e-08,197.13,197.12,57.19545892]
[1753111685792,1e-08,197.14,197.12,62.26851086]
[1753111685975,1e-08,197.14,197.13,15.8478228]
[1753111686573,7.7,197.22,197.16,26.0]
[1753111686806,7.7,197.22,197.13,21.8773228]
[1753111686807,7.7,197.22,197.21,15.59772946]
[1753111686980,9.00021001,197.25,197.2,26.0]
[1753111686981,16.70021001,197.25,197.2,26.0]
[1753111687190,7.7,197.22,197.2,26.0]
[1753111687370,16.70021001,197.25,197.2,26.0]
[1753111687568,7.7,197.22,197.2,26.0]
[1753111687792,7.7,197.22,197.21,5.07073677]
[1753111688203,7.7,197.23,197.21,56.52757871]
[1753111688409,16.70021001,197.25,197.24,26.0]
[1753111688705,9.00021001,197.25,197.24,15.59772946]
[1753111688903,9.00021001,197.25,197.24,41.59772946]
[1753111689719,9.00021001,197.25,197.24,46.66769498]
[1753111690015,1e-08,197.25,197.24,36.26542444]
[1753111690180,1e-08,197.25,197.24,20.66769498]
[1753111690384,1e-08,197.25,197.24,59.42769498]
[1753111691500,1e-08,197.25,197.2,0.26625784]
[1753111691703,7.7,197.23,197.22,15.59772946]
[1753111691894,7.7,197.23,197.21,15.59772946]
[1753111691895,8.36,197.23,197.21,15.59772946]
[1753111692080,8.36,197.23,197.2,0.26625784]
[1753111692081,7.7,197.21,197.2,0.26625784]
[1753111692279,7.7,197.21,197.2,15.8639873]
[1753111692777,1e-08,197.25,197.2,0.26625784]
[1753111692778,7.7,197.22,197.2,0.26625784]
[1753111692984,8.36,197.21,197.2,26.26625784]
[1753111693209,0.66,197.21,197.2,15.8639873]
[1753111693381,8.36,197.21,197.2,41.8639873]
[1753111693791,0.66,197.21,197.2,41.8639873]
[1753111693999,8.36,197.21,197.2,41.8639873]
[1753111694179,7.7,197.22,197.2,41.8639873]
[1753111694384,7.7,197.22,197.21,15.59772946]
[1753111694611,8.36,197.21,197.2,26.26625784]
[1753111694983,8.36,197.21,197.2,41.8639873]
[1753111695180,7.7,197.21,197.2,41.8639873]
[1753111695380,0.66,197.21,197.2,41.8639873]
[1753111695685,7.7,197.21,197.2,41.8639873]
[1753111696101,0.66,197.24,197.2,41.8639873]
[1753111696102,7.7,197.22,197.2,41.8639873]
[1753111696308,7.7,197.22,197.21,15.59772946]
[1753111696608,8.36,197.21,197.2,0.26625784]
[1753111697213,7.7,197.21,197.2,0.26625784]
[1753111697414,7.7,197.21,197.2,15.8639873]
[1753111697586,7.7,197.21,197.2,0.26625784]
[1753111697792,7.7,197.21,197.2,15.8639873]
[1753111698600,8.36,197.21,197.2,0.26625784]
[1753111700502,25.14468397,197.21,197.2,0.26625784]
[1753111700713,7.7,197.21,197.2,0.26625784]
[1753111701697,7.7,197.21,197.2,10.62947427]
[1753111703212,7.7,197.21,197.2,0.26625784]
[1753111703516,7.7,197.21,197.2,10.62947427]
[1753111703915,7.76,197.21,197.2,10.62947427]
[1753111704216,0.06,197.21,197.2,15.70046818]
[1753111704419,7.76,197.21,197.2,15.70046818]
[1753111704591,0.06,197.21,197.2,15.70046818]
[1753111704794,7.76,197.21,197.2,15.70046818]
[1753111704993,0.06,197.21,197.2,15.70046818]
[1753111705212,0.06,197.21,197.2,15.95008553]
[1753111705396,1e-08,197.21,197.2,15.95008553]
[1753111705791,1e-08,197.25,197.23,26.0]
[1753111706003,1e-08,197.25,197.24,49.3526025]
[1753111706200,1e-08,197.25,197.24,54.42256802]
[1753111706792,1e-08,197.25,197.24,44.05935159]
[1753111707048,1e-08,197.25,197.24,54.42256802]
[1753111708901,1e-08,197.25,197.24,57.79631433]
[1753111709803,1e-08,197.25,197.24,53.43256802]
[1753111710120,1e-08,197.25,197.24,15.43318195]
[1753111711603,1e-08,197.25,197.24,54.15318195]
[1753111711806,1e-08,197.25,197.24,15.43318195]
[1753111712026,0.66000001,197.25,197.09,2.3]
[1753111712201,0.66000001,197.25,197.06,2.48557409]
[1753111712202,7.7,197.24,197.22,10.36321643]
[1753111712402,0.66,197.23,197.22,10.36321643]
[1753111712597,8.36,197.23,197.22,10.36321643]
[1753111712820,7.7,197.22,197.11,16.78468397]
[1753111712992,7.7,197.22,197.21,10.36321643]
[1753111713619,7.7,197.24,197.21,10.36321643]
[1753111713819,1e-08,197.25,197.23,10.36321643]
[1753111714021,1e-08,197.25,197.24,75.06321643]
[1753111714418,1e-08,197.25,197.24,80.13318195]
[1753111714622,1e-08,197.25,197.24,80.85318195]
[1753111715120,1e-08,197.25,197.24,54.85318195]
[1753111715323,1e-08,197.25,197.24,54.13318195]
[1753111715923,1e-08,197.25,197.24,54.85318195]
[1753111716327,0.06,197.29,197.27,26.0]
[1753111716537,0.06,197.29,197.28,54.13215398]
[1753111716736,0.06,197.29,197.28,64.49537041]
[1753111716923,0.06,197.29,197.28,65.21537041]
[1753111717224,0.06,197.3,197.28,65.21537041]
[1753111717438,0.06,197.3,197.29,11.08321643]
[1753111717741,0.06,197.3,197.29,10.36321643]
[1753111718235,0.06,197.3,197.29,36.36321643]
[1753111718432,0.06,197.3,197.29,41.43189705]
[1753111718813,0.06,197.3,197.29,80.13189705]
[1753111720527,0.06,197.3,197.29,41.43189705]
[1753111720719,7.7,197.28,197.27,10.36321643]
[1753111720916,7.7,197.29,197.27,10.36321643]
[1753111721111,7.7,197.29,197.28,10.36321643]
[1753111722712,7.7,197.29,197.28,15.43215398]
[1753111723325,7.7,197.29,197.28,5.06893755]
[1753111723525,7.76,197.3,197.28,15.43215398]
[1753111723732,7.76,197.3,197.29,49.04321643]
[1753111723905,7.7,197.28,197.13,2.3]
[1753111724111,7.7,197.27,197.26,10.36321643]
[1753111724931,7.7,197.25,197.24,10.36321643]
[1753111725131,7.7,197.25,197.14,3.43217229]
[1753111725132,7.7,197.24,197.14,3.43217229]
[1753111725427,7.7,197.21,197.2,10.36321643]
[1753111726940,7.7,197.21,197.2,15.43421034]
[1753111728836,7.7,197.21,197.18,38.68]
[1753111728837,8.36,197.21,197.18,38.68]
[1753111729045,0.66,197.2,197.18,38.68]
[1753111729216,7.7,197.19,197.17,5.07174559]
[1753111729578,8.36,197.19,197.17,15.43496202]
[1753111729718,7.7,197.18,197.17,15.43496202]
[1753111729909,8.36,197.19,197.17,15.43496202]
[1753111730110,0.63380995,197.22,197.17,15.43496202]
[1753111730111,7.7,197.2,197.18,10.36321643]
[1753111730346,7.7,197.2,197.19,10.36321643]
[1753111730637,8.36,197.2,197.17,5.07174559]
[1753111730843,7.7,197.18,197.17,5.07174559]
[1753111731135,7.7,197.2,197.17,5.07174559]
[1753111731512,7.7,197.21,197.19,26.0]
[1753111731838,7.7,197.21,197.2,10.36321643]
[1753111732227,7.7,197.21,197.19,49.02321643]
[1753111732423,25.7785582,197.2,197.14,0.03]
[1753111732623,7.7,197.15,197.14,0.03]
[1753111733029,7.7,197.15,197.14,10.39321643]
[1753111733741,7.7,197.15,197.14,0.03]
[1753111733937,8.36,197.15,197.14,0.03]
[1753111734145,7.7,197.15,197.14,10.39321643]
[1753111734839,7.7,197.15,197.14,15.46575371]
[1753111735021,7.7,197.15,197.14,5.10253728]
[1753111735227,8.36,197.15,197.14,0.03]
[1753111735647,35.5079004,197.15,197.14,0.03]
[1753111735849,35.5079004,197.15,197.13,0.03]
[1753111735850,34.8479004,197.14,197.13,0.03]
[1753111736024,25.77875113,197.14,197.13,0.03]
[1753111736239,36.14196756,197.14,197.13,0.03]
[1753111736754,25.77875113,197.14,197.13,0.03]
[1753111737083,36.14196756,197.14,197.13,0.03]
[1753111737526,8.36,197.14,197.13,0.03]
[1753111737728,7.7,197.14,197.13,0.03]
[1753111738146,8.36,197.14,197.13,0.03]
[1753111738658,7.7,197.14,197.13,10.39321643]
[1753111738855,8.36,197.14,197.13,0.03]
[1753111739054,35.5079004,197.14,197.13,0.03]
[1753111739354,25.14468397,197.14,197.13,0.03]
[1753111740232,25.77875113,197.14,197.13,0.03]
[1753111741258,36.14196756,197.14,197.13,0.03]
[1753111741650,36.14196756,197.14,197.06,10.36321643]
[1753111741651,7.7,197.09,197.05,5.07470136]
[1753111741844,7.7,197.09,197.01,12.68945491]
[1753111741845,7.7,197.07,197.03,10.36321643]
[1753111742059,7.7,197.06,197.04,10.36321643]
[1753111742579,0.71,197.05,197.01,5.0758476]
[1753111742861,7.7,197.04,197.03,10.36321643]
[1753111743063,7.7,197.04,197.03,15.43858566]
[1753111744962,7.7,197.04,197.03,43.73536923]
[1753111745268,7.7,197.04,197.03,54.09858566]
[1753111745468,7.7,197.06,197.03,54.79858566]
[1753111745653,7.7,197.06,197.05,10.36321643]
[1753111745854,7.7,197.11,197.08,26.0]
[1753111746049,7.7,197.13,197.1,10.36321643]
[1753111746372,7.7,197.13,197.12,10.36321643]
[1753111746535,7.7,197.1,197.08,64.64]
[1753111746742,7.7,197.1,197.09,10.36321643]
[1753111746957,8.41,197.12,197.09,10.36321643]
[1753111747162,10.36321643,197.15,197.1,15.43678314]
[1753111747163,7.7,197.11,197.1,15.43678314]
[1753111747484,7.7,197.11,197.03,25.37684616]
[1753111747485,7.7,197.1,197.02,5.07562683]
[1753111747651,7.7,197.06,197.05,10.36321643]
[1753111747971,7.7,197.08,197.05,10.36321643]
[1753111748172,0.71,197.08,197.04,26.0]
[1753111748481,7.7,197.07,197.06,10.36321643]
[1753111748762,0.71,197.07,197.02,5.07562683]
[1753111748960,7.7,197.05,197.04,10.36321643]
[1753111749138,7.7,197.05,197.04,15.43832808]
[1753111749341,7.7,197.06,197.04,15.43832808]
[1753111749560,7.7,197.06,197.05,10.36321643]
[1753111749758,0.63413149,197.12,197.05,10.36321643]
[1753111749759,7.7,197.07,197.05,49.00321643]
[1753111749959,7.7,197.09,197.06,10.36321643]
[1753111750143,7.7,197.09,197.08,10.36321643]
[1753111750550,7.7,197.09,197.07,10.36321643]
[1753111750862,7.7,197.08,197.07,10.36321643]
[1753111751061,7.7,197.08,197.06,10.36321643]
[1753111751062,8.41,197.08,197.06,10.36321643]
[1753111751262,7.7,197.08,197.06,15.43766022]
[1753111751448,7.7,197.08,197.07,10.36321643]
[1753111751649,7.7,197.09,197.07,10.36321643]
[1753111751866,7.7,197.09,197.08,10.36321643]
[1753111752178,7.7,197.12,197.08,10.36321643]
[1753111752369,7.7,197.12,197.11,10.36321643]
[1753111752867,7.7,197.11,197.08,26.0]
[1753111753172,7.7,197.09,197.08,31.07408159]
[1753111753467,7.7,197.1,197.08,31.07408159]
[1753111753642,21.85674192,197.16,197.08,31.07408159]
[1753111753643,7.7,197.09,197.08,26.0]
[1753111753848,7.7,197.08,197.06,43.7143392]
[1753111754064,8.41,197.09,197.07,10.36321643]
[1753111754270,0.71,197.08,197.03,0.03]
[1753111754579,0.71,197.08,197.06,26.0]
[1753111754580,8.41,197.08,197.06,26.0]
[1753111754748,8.41,197.07,197.06,26.0]
[1753111754950,7.7,197.06,197.04,10.36321643]
[1753111755469,7.7,197.05,197.04,10.36321643]
[1753111755654,7.7,197.04,197.03,0.03]
[1753111755856,8.41,197.04,197.03,0.03]
[1753111757173,7.7,197.04,197.03,10.39321643]
[1753111757690,7.7,197.04,197.03,0.03]
[1753111758154,7.7,197.04,197.03,10.39321643]
[1753111758864,7.7,197.04,197.03,0.03]
[1753111759056,7.7,197.04,197.03,10.39321643]
[1753111759470,7.7,197.04,197.03,5.10536923]
[1753111759657,7.7,197.04,197.03,15.46858566]
[1753111760360,7.7,197.04,197.03,5.10536923]
[1753111760559,7.7,197.04,197.03,15.46858566]
[1753111761100,7.7,197.04,197.03,10.39321643]
[1753111761872,8.41,197.04,197.03,0.03]
[1753111762178,8.41,197.04,197.03,10.39321643]
[1753111762673,7.7,197.04,197.03,10.39321643]
[1753111764065,7.7,197.04,197.03,15.46858566]
[1753111764370,7.7,197.04,197.03,5.10536923]
[1753111764676,7.7,197.04,197.03,15.46858566]
[1753111764976,7.7,197.04,197.03,5.10536923]
[1753111765158,7.7,197.04,197.03,15.46858566]
[1753111765756,7.7,197.04,197.03,10.39321643]
[1753111766263,8.41,197.04,197.03,10.39321643]
[1753111766574,8.41,197.04,197.03,0.03]
[1753111767275,8.41,197.04,197.03,10.39321643]
[1753111767885,8.41,197.04,197.03,0.03]
[1753111768259,25.19468397,197.04,197.03,0.03]
[1753111768677,8.41,197.04,197.03,10.39321643]
[1753111768875,8.41,197.04,197.03,0.03]
[1753111769171,9.04438895,197.04,197.03,0.03]
[1753111769579,8.41,197.04,197.03,0.03]
[1753111769769,8.41,197.04,197.03,6.5185631]
[1753111770085,8.41,197.04,197.03,0.03]
[1753111770285,8.41,197.04,197.02,0.03]
[1753111770483,16.78468397,196.98,196.94,38.58]
[1753111770789,7.7,196.95,196.94,38.58]
[1753111771083,7.7,196.96,196.94,50.84625173]
[1753111771279,7.7,196.95,196.94,44.35768863]
[1753111771490,7.7,196.95,196.94,43.65768863]
[1753111771778,7.7,196.95,196.94,50.14625173]
[1753111772169,7.7,196.96,196.94,38.58]
[1753111772366,8.38,196.96,196.95,6.4885631]
[1753111772566,7.7,196.94,196.92,26.0]
[1753111772778,7.7,196.93,196.91,5.07841769]
[1753111772971,7.7,196.92,196.91,5.07841769]
[1753111773159,7.7,196.92,196.91,11.56698079]
[1753111774290,7.7,196.92,196.91,12.25698079]
[1753111774461,7.7,196.94,196.93,26.0]
[1753111774875,8.38,196.94,196.91,5.07841769]
[1753111775087,7.7,196.92,196.91,5.07841769]
[1753111775977,8.38,196.92,196.91,5.07841769]
[1753111776370,8.38,196.92,196.91,26.0]
[1753111776568,8.38,196.92,196.91,32.4885631]
[1753111777277,11.3789,196.92,196.9,0.03]
[1753111777581,25.79949175,196.91,196.9,0.03]
[1753111780784,25.16468397,196.91,196.9,0.03]
[1753111781684,7.7,196.91,196.9,0.03]
[1753111782182,7.7,196.91,196.9,6.5185631]
[1753111782709,7.7,196.91,196.9,11.59728326]
[1753111782996,7.7,196.91,196.9,6.5185631]
[1753111783202,7.7,196.91,196.9,11.59728326]
[1753111783375,6.7,196.91,196.9,11.59728326]
[1753111783914,6.7,196.94,196.9,31.47264676]
[1753111784079,6.7,196.97,196.93,6.4885631]
[1753111784382,6.7,196.98,196.94,5.76768863]
[1753111784794,6.7,196.97,196.94,5.76768863]
[1753111784999,6.7,196.97,196.96,6.4885631]
[1753111785184,6.7,196.98,196.96,6.4885631]
[1753111785388,6.7,196.98,196.97,6.4885631]
[1753111785684,6.7,197.0,196.97,7.1785631]
[1753111785890,6.7,196.99,196.97,26.69]
[1753111786078,6.7,197.01,197.0,26.0]
[1753111786282,6.7,197.04,197.0,44.05326833]
[1753111786484,6.7,197.04,197.03,6.4885631]
[1753111786901,6.7,197.05,197.03,6.4885631]
[1753111787081,6.7,197.05,197.04,6.4885631]
[1753111787281,6.7,197.05,197.04,10.37609645]
[1753111787485,6.7,197.04,197.0,31.07614213]
[1753111787678,6.7,197.04,197.0,5.07614213]
[1753111787885,6.7,197.04,197.03,36.37609645]
[1753111788302,6.7,197.06,197.03,41.45146568]
[1753111788484,6.7,197.06,197.03,31.07536923]
[1753111788684,6.7,197.06,197.05,10.37609645]
[1753111789303,6.7,197.02,197.01,10.37609645]
[1753111789492,7.38,197.02,197.01,10.37609645]
[1753111789689,7.38,197.02,196.98,26.0]
[1753111789883,23.48468397,196.98,196.91,5.07846224]
[1753111790204,23.48468397,196.91,196.9,0.03]
[1753111790587,24.16468397,196.91,196.9,0.03]
[1753111790989,23.48468397,196.91,196.9,0.03]
[1753111791481,6.7,196.91,196.9,10.40609645]
[1753111791881,6.7,196.91,196.9,0.03]
[1753111792103,7.38,196.91,196.9,0.03]
[1753111792693,7.38,196.91,196.9,10.40609645]
[1753111792694,6.7,196.91,196.9,10.40609645]
[1753111792883,7.38,196.91,196.9,0.03]
[1753111793279,6.7,196.91,196.9,0.03]
[1753111794102,6.7,196.91,196.9,10.40609645]
[1753111794307,6.7,196.91,196.9,0.03]
[1753111794514,6.7,196.91,196.9,10.40609645]
[1753111795296,6.7,196.91,196.9,0.03]
[1753111795498,7.38,196.91,196.9,0.03]
[1753111795714,24.79949175,196.91,196.9,0.03]
[1753111797398,24.76584694,196.91,196.9,0.03]
[1753111798911,6.66635519,196.91,196.9,0.03]
[1753111799505,7.34635519,196.91,196.9,0.03]
[1753111800123,24.13103916,196.91,196.9,0.03]
[1753111800327,7.34635519,196.91,196.9,0.03]
[1753111800716,6.66635519,196.91,196.9,0.03]
[1753111801020,7.34635519,196.91,196.9,0.03]
[1753111801422,6.66635519,196.91,196.9,0.03]
[1753111801628,6.66635519,196.91,196.9,10.40609645]
[1753111801929,6.66635519,196.93,196.92,26.0]
[1753111802096,6.66635519,196.93,196.92,41.45420539]
[1753111802294,17.41929837,196.97,196.92,41.45420539]
[1753111802295,6.66635519,196.94,196.92,41.45420539]
[1753111802497,6.66635519,196.93,196.92,31.07810894]
[1753111802789,1.32458219,196.98,196.92,52.49030184]
[1753111802790,6.66635519,196.98,196.92,52.49030184]
[1753111803016,6.66635519,196.98,196.97,10.37609645]
[1753111803210,6.72635519,197.02,196.99,26.0]
[1753111803519,6.72635519,197.02,197.0,10.37609645]
[1753111803827,6.66635519,197.01,196.97,0.66]
[1753111804002,6.66635519,196.99,196.98,5.07665752]
[1753111804201,6.66635519,196.99,196.98,15.45275397]
[1753111804512,6.66635519,196.99,196.98,5.07665752]
[1753111804808,6.66635519,196.99,196.98,15.45275397]
[1753111805421,6.72635519,197.02,196.98,28.80439779]
[1753111805623,0.06,197.02,197.01,36.37609645]
[1753111805919,6.72635519,197.02,197.01,80.57198092]
[1753111806798,0.06,197.02,197.01,80.57198092]
[1753111807132,0.06,197.02,196.98,12.69164382]
[1753111807133,23.45103916,197.0,196.97,10.37609645]
[1753111807303,23.45103916,197.0,196.91,5.07846224]
[1753111807304,6.66635519,196.97,196.91,5.07846224]
[1753111807615,6.66635519,196.93,196.9,43.5486896]
[1753111807823,6.66635519,196.93,196.92,26.0]
[1753111808014,6.66635519,196.93,196.92,10.37609645]
[1753111808529,6.66635519,196.93,196.92,15.45430079]
[1753111809223,6.66635519,196.93,196.92,5.73820434]
[1753111809425,6.66635519,196.94,196.92,42.11430079]
[1753111809605,6.66635519,196.93,196.92,42.11430079]
[1753111810319,0.06,197.02,196.95,26.0]
[1753111810525,0.06,197.02,197.0,10.37609645]
[1753111810709,0.06,197.02,196.99,36.37609645]
[1753111810916,0.06,197.02,196.99,26.0]
[1753111811116,0.06,197.02,197.0,10.37609645]
[1753111811326,0.06,197.02,196.99,26.0]
[1753111811707,0.06,197.02,197.01,10.37609645]
[1753111812107,0.06,197.02,197.01,15.45198092]
[1753111812530,0.06,197.02,197.01,16.11198092]
[1753111812910,0.06,197.02,197.01,54.53198092]
[1753111814547,0.06,197.02,197.01,53.87198092]
[1753111815006,0.06,197.02,197.0,38.42]
[1753111816132,0.06,197.02,197.01,5.07588447]
[1753111816538,0.06,197.02,197.01,15.45198092]
[1753111818135,0.06,197.02,197.01,16.11198092]
[1753111818342,0.06,197.02,197.01,5.07588447]
[1753111818639,0.06,197.02,196.99,26.0]
[1753111818845,0.69,197.01,196.95,10.37609645]
[1753111819020,11.06609645,197.01,196.95,10.37609645]
[1753111819215,11.06609645,197.01,196.94,43.45768863]
[1753111819416,11.06609645,197.01,196.95,10.37609645]
[1753111819659,11.06609645,197.01,196.96,26.0]
[1753111819837,11.06609645,197.01,196.95,10.37609645]
[1753111820013,11.06609645,197.01,196.97,26.0]
[1753111820218,11.70061421,197.0,196.97,26.0]
[1753111820531,11.010582,197.01,196.97,26.0]
[1753111820839,0.69,197.0,196.97,26.0]
[1753111821042,16.78468397,196.97,196.91,5.07846224]
[1753111821214,10.37609645,196.96,196.91,5.07846224]
[1753111821416,11.06609645,196.95,196.9,15.48476923]
[1753111821625,0.69,196.94,196.9,15.48476923]
[1753111821840,0.69,196.94,196.9,0.03]
[1753111822023,0.69,196.93,196.9,0.03]
[1753111822213,10.08684662,196.96,196.91,26.0]
[1753111822214,27.16078042,196.95,196.91,26.0]
[1753111822639,0.69,196.94,196.91,26.0]
[1753111823018,0.69,196.94,196.9,0.03]
[1753111823415,0.69,196.93,196.9,0.03]
[1753111823619,0.69,196.93,196.9,5.10871368]
[1753111823822,0.69,196.93,196.9,0.03]
[1753111824134,0.69,196.93,196.9,10.40609645]
[1753111824445,0.69,196.92,196.9,0.03]
[1753111824738,27.16078042,196.91,196.9,0.03]
[1753111825040,16.78468397,196.91,196.9,0.03]
[1753111825242,0.69,196.91,196.9,0.03]
[1753111825427,10.37609645,196.91,196.9,0.03]
[1753111825631,27.85078042,196.91,196.9,0.03]
[1753111826139,17.47468397,196.91,196.9,0.03]
[1753111826351,27.85078042,196.91,196.9,0.03]
[1753111826838,32.92924266,196.91,196.9,0.03]
[1753111827013,27.85078042,196.91,196.9,0.03]
[1753111827218,17.47468397,196.91,196.9,0.03]
[1753111827417,0.69,196.91,196.9,0.03]
[1753111827832,0.6347433,196.93,196.9,0.03]
[1753111828031,0.69,196.93,196.9,0.03]
[1753111828345,0.69,196.93,196.91,10.37609645]
[1753111828520,16.78468397,196.94,196.91,10.37609645]
[1753111828719,0.63467885,196.95,196.93,10.37609645]
[1753111828930,0.69,197.0,196.94,10.37609645]
[1753111829239,0.06,197.02,196.99,10.37609645]
[1753111829538,0.69,197.01,196.99,26.0]
[1753111829950,0.69,197.01,196.93,38.36]
[1753111829951,0.69,197.0,196.96,10.37609645]
[1753111830148,0.69,196.99,196.94,26.0]
[1753111830461,10.37609645,196.97,196.92,41.45430079]
[1753111830621,11.01074307,196.96,196.92,26.0]
[1753111830821,0.63451776,197.0,196.91,5.07844835]
[1753111831044,16.78468397,196.99,196.94,10.37609645]
[1753111831250,0.68,196.98,196.94,10.37609645]
[1753111831432,0.68,196.98,196.91,18.43460395]
[1753111831433,0.68,196.98,196.93,10.37609645]
[1753111831629,16.78468397,196.99,196.94,10.37609645]
[1753111831845,0.06,197.02,196.98,10.37609645]
[1753111832150,0.06,197.02,196.95,39.01]
[1753111832151,0.06,197.02,196.96,0.67]
[1753111832524,0.06,197.02,196.99,10.37609645]
[1753111832725,0.74,197.02,196.99,10.37609645]
[1753111832917,0.74,197.02,197.0,10.37609645]
[1753111833334,0.74,197.02,196.97,5.07691526]
[1753111833535,0.74,197.02,197.0,10.37609645]
[1753111834252,0.74,197.02,196.99,10.37609645]
[1753111834717,0.74,197.02,196.94,10.37609645]
[1753111834718,10.37609645,197.0,196.94,10.37609645]
[1753111834922,0.06,197.02,196.92,26.0]
[1753111834923,28.47533039,196.99,196.92,26.0]
[1753111835148,28.47533039,196.99,196.93,10.37609645]
[1753111835457,17.41923394,196.99,196.94,10.37609645]
[1753111835645,11.05609645,196.98,196.91,5.07846224]
[1753111835825,0.6346144,196.97,196.93,10.37609645]
[1753111836019,16.08741127,196.98,196.93,10.37609645]
[1753111836227,0.68,196.96,196.92,10.37609645]
[1753111836426,0.63458219,196.98,196.94,10.37609645]
[1753111836960,0.68,196.97,196.94,10.37609645]
[1753111837130,0.68,196.97,196.93,10.37609645]
[1753111837326,0.68,196.97,196.92,0.03]
[1753111837524,27.79533039,196.99,196.92,0.03]
[1753111837525,0.63458219,196.98,196.92,0.03]
[1753111837726,16.78468397,197.0,196.97,10.37609645]
[1753111837938,16.84468397,197.02,196.98,10.37609645]
[1753111838142,17.52468397,197.02,196.98,15.45265094]
[1753111838344,0.63448555,197.01,196.98,10.37609645]
[1753111838630,1.31448555,197.01,196.96,10.37609645]
[1753111838835,0.68,197.0,196.96,10.37609645]
[1753111839236,0.63448555,197.01,196.97,10.37609645]
[1753111839641,1.31448555,197.01,196.97,10.37609645]
[1753111840438,17.46468397,197.0,196.94,26.0]
[1753111840643,16.78468397,196.98,196.94,36.37609645]
[1753111840949,16.78468397,196.94,196.92,0.03]
[1753111841149,27.79552372,196.93,196.92,0.03]
[1753111841357,28.47552372,196.93,196.92,0.03]
[1753111841851,16.78468397,196.9,196.86,0.03]
[1753111842046,0.63487226,196.89,196.86,0.03]
[1753111842254,16.78468397,196.87,196.86,0.03]
[1753111842459,17.41962073,196.87,196.86,0.03]
[1753111842624,66.77571718,196.87,196.86,0.03]
[1753111842824,76.30841718,196.87,196.86,0.03]
[1753111843023,65.93232073,196.87,196.86,0.03]
[1753111843646,76.30841718,196.87,196.86,0.03]
[1753111843837,81.38791126,196.87,196.86,0.03]